bitfinex/quotes_BTCUSD_20250314
["timestamp","ask_amount","ask_price","bid_price","bid_amount"]
[1741957748040,0.011946,83709.0,83702.0,0.238942]
[1741957748243,0.238924,83709.0,83706.0,0.003]
[1741957748442,0.238926,83708.0,83705.0,0.238933]
[1741957748640,0.238931,83706.0,83704.0,0.238935]
[1741957748851,0.23893,83707.0,83705.0,0.238933]
[1741957749048,0.238935,83705.0,83702.0,0.23894]
[1741957749589,0.238931,83706.0,83703.0,0.238939]
[1741957750161,0.238934,83705.0,83701.0,0.011947]
[1741957750327,0.250877,83706.0,83702.0,0.239941]
[1741957750536,0.238936,83705.0,83702.0,0.001]
[1741957750742,0.011946,83705.0,83700.0,0.250894]
[1741957750937,0.250883,83704.0,83703.0,0.001]
[1741957753088,0.250887,83703.0,83702.0,0.002]
[1741957753256,0.250887,83703.0,83702.0,0.0021695]
[1741957753664,0.250887,83703.0,83702.0,0.0001695]
[1741957754451,0.250887,83703.0,83702.0,0.0021695]
[1741957754649,0.250887,83703.0,83702.0,0.0041695]
[1741957755087,0.26934206,83703.0,83702.0,0.0041695]
[1741957763153,0.25739506,83703.0,83702.0,0.0041695]
[1741957766267,0.01845506,83703.0,83702.0,0.0041695]
[1741957766475,0.01545286,83706.0,83702.0,0.25625315]
[1741957766682,0.01545286,83706.0,83702.0,0.0041695]
[1741957766898,0.238935,83705.0,83702.0,0.2431115]
[1741957767419,0.238935,83705.0,83702.0,0.2411115]
[1741957767620,0.238938,83704.0,83702.0,0.0021695]
[1741957767851,0.238938,83704.0,83702.0,0.0011695]
[1741957768052,0.23894,83703.0,83702.0,0.0011695]
[1741957768200,0.2575186,83705.0,83702.0,0.0011695]
[1741957768401,0.238935,83705.0,83702.0,0.0011695]
[1741957768771,0.238935,83705.0,83702.0,0.0031695]
[1741957768994,0.238934,83705.0,83702.0,0.2421095]
[1741957769189,0.26633086,83706.0,83703.0,0.238939]
[1741957769369,0.0187697,83705.0,83704.0,0.238937]
[1741957769665,0.01545286,83706.0,83704.0,0.238937]
[1741957770075,0.25438386,83706.0,83704.0,0.238937]
[1741957770817,0.01545286,83706.0,83704.0,0.240937]
[1741957771679,0.27290029,83706.0,83704.0,0.002]
[1741957771993,0.25438486,83706.0,83704.0,0.002]
[1741957772193,0.25438486,83706.0,83704.0,0.240937]
[1741957772339,0.01545286,83706.0,83704.0,0.240937]
[1741957772519,0.25438486,83706.0,83704.0,0.002]
[1741957773847,0.01545286,83706.0,83704.0,0.002]
[1741957774048,0.03360531,83706.0,83705.0,0.25088]
[1741957775349,0.03360531,83706.0,83705.0,0.25188]
[1741957775564,0.03360531,83706.0,83705.0,0.25288]
[1741957777029,0.03360531,83706.0,83705.0,0.240934]
[1741957777215,0.03360531,83706.0,83705.0,0.25288]
[1741957785909,0.01545286,83706.0,83705.0,0.34452085]
[1741957786055,0.01545286,83706.0,83705.0,0.39212085]
[1741957786860,0.01545286,83706.0,83705.0,0.39112085]
[1741957787064,0.01545286,83706.0,83705.0,0.52808085]
[1741957787307,0.01545286,83706.0,83705.0,0.53008085]
[1741957788128,0.01545286,83706.0,83705.0,0.52508085]
[1741957788651,0.01545286,83706.0,83705.0,0.52908085]
[1741957789599,0.01545286,83706.0,83705.0,0.39812085]
[1741957789795,0.01545286,83706.0,83705.0,0.38358]
[1741957792107,0.01545286,83706.0,83705.0,0.39812085]
[1741957795642,0.01545286,83706.0,83705.0,0.38358]
[1741957797442,0.01545286,83706.0,83705.0,0.78767]
[1741957797842,0.01545286,83706.0,83705.0,0.66297]
[1741957801904,0.01545286,83706.0,83705.0,0.6631394]
[1741957810499,0.01545286,83706.0,83705.0,0.7912394]
[1741957813844,0.01545286,83706.0,83705.0,0.80817671]
[1741957818025,0.01545286,83706.0,83705.0,1.50347671]
[1741957818397,0.01545286,83706.0,83705.0,1.49547671]
[1741957818601,0.01545286,83706.0,83705.0,1.50047671]
[1741957818803,0.01545286,83706.0,83705.0,1.50647671]
[1741957819287,0.01545286,83706.0,83705.0,1.4895394]
[1741957820566,0.01545286,83706.0,83705.0,1.50632772]
[1741957821434,8.6e-07,83706.0,83705.0,1.51132772]
[1741957821608,8.6e-07,83713.0,83712.0,0.374159]
[1741957821808,8.6e-07,83713.0,83712.0,0.508999]
[1741957823536,8.6e-07,83713.0,83712.0,1.617389]
[1741957824744,8.6e-07,83713.0,83712.0,1.618389]
[1741957825127,8.6e-07,83713.0,83712.0,1.624389]
[1741957825331,8.6e-07,83713.0,83712.0,1.619389]
[1741957825885,8.6e-07,83713.0,83712.0,1.745389]
[1741957826302,8.6e-07,83713.0,83712.0,1.751389]
[1741957826656,0.000339,83728.0,83727.0,0.011943]
[1741957827000,0.000339,83728.0,83727.0,0.38684802]
[1741957827205,0.000339,83728.0,83727.0,1.53324314]
[1741957828487,0.000339,83728.0,83727.0,1.53824314]
[1741957828886,0.000339,83728.0,83727.0,1.54424314]
[1741957832068,0.000339,83728.0,83727.0,1.55505661]
[1741957832908,0.000339,83728.0,83727.0,1.54905661]
[1741957833238,0.000339,83728.0,83727.0,1.55505661]
[1741957833775,0.000339,83728.0,83727.0,1.41421661]
[1741957833994,0.000339,83728.0,83727.0,1.54901661]
[1741957834856,0.000339,83728.0,83727.0,1.54401661]
[1741957835230,0.000339,83728.0,83727.0,1.55001661]
[1741957835440,0.000339,83728.0,83727.0,1.55601661]
[1741957836836,0.0003388,83734.0,83733.0,0.250796]
[1741957837042,0.0003388,83734.0,83733.0,0.78968514]
[1741957837406,0.0003388,83734.0,83733.0,0.80046759]
[1741957838351,0.0003388,83734.0,83733.0,0.66566759]
[1741957838556,0.0003388,83734.0,83733.0,0.80646759]
[1741957839154,0.0003388,83734.0,83733.0,0.81246759]
[1741957844395,0.0003388,83734.0,83733.0,0.67766759]
[1741957844634,0.0003388,83734.0,83733.0,0.81246759]
[1741957848950,0.0003388,83734.0,83733.0,0.67766759]
[1741957849156,0.3323318,83734.0,83733.0,0.42687159]
[1741957849329,0.34687265,83734.0,83733.0,0.02278245]
[1741957849697,0.34687265,83734.0,83733.0,0.012]
[1741957850399,0.34687265,83734.0,83733.0,0.006]
[1741957850607,0.34687265,83734.0,83733.0,0.008]
[1741957850805,0.34687265,83734.0,83733.0,0.002]
[1741957851041,0.34687265,83734.0,83733.0,0.004]
[1741957851781,0.34687265,83734.0,83733.0,0.002]
[1741957852432,0.34687265,83734.0,83733.0,0.004]
[1741957853818,0.39657265,83734.0,83733.0,0.004]
[1741957854798,0.39657265,83734.0,83733.0,0.002]
[1741957855994,0.332726,83723.0,83722.0,0.40408914]
[1741957856248,0.34726685,83723.0,83722.0,0.40408914]
[1741957856455,0.34726685,83723.0,83722.0,0.41336385]
[1741957856627,0.34726685,83723.0,83722.0,0.40408914]
[1741957856829,0.34726685,83723.0,83722.0,0.41336385]
[1741957859651,0.03192112,83697.0,83696.0,0.00980622]
[1741957859993,0.03192112,83697.0,83694.0,0.238965]
[1741957860187,0.03192112,83697.0,83696.0,0.00980622]
[1741957860387,0.27087812,83697.0,83693.0,0.250916]
[1741957860596,0.27087812,83697.0,83696.0,0.01280622]
[1741957860794,0.27087812,83697.0,83696.0,0.003]
[1741957860795,0.28282512,83697.0,83696.0,0.003]
[1741957861025,0.28282512,83697.0,83691.0,0.0001694]
[1741957861026,0.250919,83692.0,83691.0,0.0001694]
[1741957861221,0.238971,83692.0,83691.0,0.0001694]
[1741957861636,0.250919,83692.0,83691.0,0.0001694]
[1741957862037,0.238963,83695.0,83691.0,0.0001694]
[1741957862252,0.250916,83693.0,83691.0,0.0041694]
[1741957862454,0.238971,83692.0,83691.0,0.0041694]
[1741957862657,0.25351185,83692.0,83691.0,0.0041694]
[1741957862996,0.26545985,83692.0,83691.0,0.0001694]
[1741957863295,0.26545985,83692.0,83691.0,0.0031694]
[1741957863688,0.26545985,83692.0,83691.0,0.0051694]
[1741957863886,0.26545985,83692.0,83691.0,0.01300149]
[1741957864088,0.26545985,83692.0,83691.0,0.0031694]
[1741957864253,0.26545985,83692.0,83691.0,0.0051694]
[1741957864665,0.26545985,83692.0,83691.0,0.0021694]
[1741957864872,0.26545985,83692.0,83691.0,0.0051694]
[1741957865200,0.01454085,83692.0,83691.0,0.0051694]
[1741957865511,0.01454085,83692.0,83691.0,0.2441434]
[1741957866246,0.02648885,83692.0,83691.0,0.0051694]
[1741957866821,0.26545985,83692.0,83691.0,0.0051694]
[1741957868983,0.34115985,83692.0,83691.0,0.0051694]
[1741957869260,0.02631639,83697.0,83696.0,0.23896]
[1741957869433,0.01454085,83696.0,83694.0,0.011948]
[1741957869635,0.01738027,83697.0,83696.0,0.250908]
[1741957869861,0.00918629,83703.0,83702.0,0.250889]
[1741957870068,0.01454085,83703.0,83702.0,0.250889]
[1741957870627,0.03096565,83703.0,83702.0,0.250889]
[1741957870810,0.03096565,83703.0,83702.0,0.249889]
[1741957871331,0.03096565,83703.0,83702.0,0.247889]
[1741957871528,0.03196565,83703.0,83702.0,0.247889]
[1741957871951,0.0174248,83703.0,83702.0,0.247889]
[1741957872110,0.0174248,83703.0,83702.0,0.77457814]
[1741957872111,0.001,83703.0,83702.0,0.77457814]
[1741957872918,0.25344585,83716.0,83713.0,0.238911]
[1741957873334,0.01454085,83714.0,83710.0,0.238919]
[1741957873544,0.01454085,83714.0,83712.0,0.238913]
[1741957873817,0.01454085,83715.0,83712.0,0.238913]
[1741957874063,0.03089966,83715.0,83712.0,0.238913]
[1741957874260,0.01454085,83715.0,83712.0,0.238913]
[1741957874442,0.01454085,83716.0,83712.0,0.250859]
[1741957874640,0.238905,83715.0,83710.0,0.251863]
[1741957874862,0.01454085,83715.0,83713.0,0.238911]
[1741957875068,0.03033301,83715.0,83714.0,0.238908]
[1741957875611,0.03033301,83715.0,83712.0,0.239914]
[1741957875812,0.03033301,83715.0,83713.0,0.23891]
[1741957876188,0.26923901,83715.0,83713.0,0.001]
[1741957877336,0.26923901,83715.0,83713.0,0.23991]
[1741957877590,0.25344885,83714.0,83713.0,0.001]
[1741957877796,0.01454085,83714.0,83713.0,0.001]
[1741957877971,0.25344885,83714.0,83713.0,0.001]
[1741957878178,0.26539385,83714.0,83713.0,0.001]
[1741957878379,0.34779385,83714.0,83713.0,0.001]
[1741957878579,0.25345185,83713.0,83709.0,0.238922]
[1741957879116,0.01454085,83711.0,83709.0,0.238922]
[1741957879481,0.01454085,83712.0,83710.0,0.250866]
[1741957879675,0.01454085,83712.0,83711.0,0.238917]
[1741957879986,0.25345485,83712.0,83709.0,0.238922]
[1741957880243,0.01454085,83712.0,83710.0,0.238919]
[1741957880805,0.25346085,83710.0,83709.0,0.001]
[1741957881266,0.25346085,83710.0,83709.0,0.002]
[1741957881506,0.25346085,83710.0,83709.0,0.004]
[1741957881968,0.34510685,83710.0,83709.0,0.002]
[1741957882193,0.34510685,83710.0,83709.0,0.004]
[1741957882662,0.011947,83700.0,83695.0,0.64305114]
[1741957882898,0.01454085,83702.0,83701.0,0.238945]
[1741957883107,0.01454085,83702.0,83700.0,0.238946]
[1741957883343,0.01454085,83702.0,83701.0,0.238945]
[1741957883582,0.01454085,83704.0,83703.0,0.238939]
[1741957883810,0.01454085,83708.0,83707.0,0.238926]
[1741957884274,0.01454085,83709.0,83708.0,0.250871]
[1741957884513,0.01454085,83708.0,83706.0,0.250876]
[1741957885253,0.01454085,83709.0,83707.0,0.238928]
[1741957885492,0.01454085,83709.0,83703.0,0.250884]
[1741957885734,0.011946,83706.0,83701.0,0.238944]
[1741957885976,0.238936,83705.0,83701.0,0.250892]
[1741957886223,0.238931,83706.0,83701.0,0.250892]
[1741957886224,0.25346885,83707.0,83704.0,0.238936]
[1741957887362,0.238935,83705.0,83702.0,0.250887]
[1741957887629,0.238937,83704.0,83701.0,0.238945]
[1741957887872,0.238937,83704.0,83701.0,0.239945]
[1741957888104,0.238941,83703.0,83700.0,0.25089]
[1741957888328,0.01454085,83703.0,83702.0,0.238942]
[1741957888804,0.01454085,83704.0,83702.0,0.240942]
[1741957889979,0.01454085,83704.0,83702.0,0.238942]
[1741957890416,0.01454085,83706.0,83703.0,0.23894]
[1741957890667,0.25347285,83706.0,83703.0,0.23894]
[1741957891648,0.01454085,83704.0,83702.0,0.238942]
[1741957891899,0.25347885,83704.0,83702.0,0.238942]
[1741957892137,0.25347885,83704.0,83702.0,0.241942]
[1741957892615,0.27221879,83704.0,83701.0,0.25089]
[1741957892840,0.27221879,83704.0,83702.0,0.238942]
[1741957893079,0.25347885,83704.0,83702.0,0.238942]
[1741957893308,0.25347885,83704.0,83703.0,0.001]
[1741957893533,0.25347885,83704.0,83701.0,0.238943]
[1741957893761,0.01454085,83705.0,83702.0,0.253889]
[1741957893985,0.0001,84851.0,83703.0,0.23894]
[1741957893986,0.01454085,83714.0,83703.0,0.23894]
[1741957894194,0.01454085,83714.0,83702.0,0.005]
[1741957894195,0.01454085,83714.0,83711.0,0.011945]
[1741957894423,0.01454085,83714.0,83711.0,0.250861]
[1741957894742,0.01454085,83712.0,83711.0,0.238916]
[1741957894945,0.01454085,83713.0,83711.0,0.238916]
[1741957895701,0.01454085,83711.0,83707.0,0.011946]
[1741957896028,0.0003388,83709.0,83708.0,0.238923]
[1741957897318,0.0003388,83709.0,83708.0,0.239923]
[1741957897729,0.0776,83728.0,83721.0,0.238888]
[1741957897938,0.770863,83729.0,83723.0,0.011944]
[1741957898137,0.238886,83722.0,83719.0,0.238893]
[1741957898550,0.238889,83721.0,83718.0,0.238897]
[1741957898757,0.238886,83722.0,83719.0,0.238893]
[1741957898959,0.250826,83724.0,83721.0,0.238888]
[1741957899196,0.238884,83723.0,83720.0,0.23889]
[1741957899600,0.238891,83720.0,83718.0,0.238894]
[1741957900647,0.238891,83720.0,83718.0,0.22015636]
[1741957901028,0.239891,83720.0,83718.0,0.22015636]
[1741957901227,0.239891,83720.0,83717.0,0.250844]
[1741957901386,0.239891,83720.0,83718.0,0.238896]
[1741957902003,0.001,83720.0,83718.0,0.25084]
[1741957902207,0.001,83720.0,83719.0,0.238894]
[1741957902612,0.238886,83722.0,83718.0,0.25084]
[1741957903171,0.238886,83722.0,83715.0,0.238897]
[1741957903172,0.011944,83719.0,83715.0,0.238904]
[1741957903381,0.250843,83719.0,83715.0,0.238904]
[1741957903672,0.238911,83714.0,83710.0,0.238918]
[1741957904261,0.238912,83713.0,83710.0,0.238918]
[1741957904815,0.238912,83713.0,83705.0,0.41603514]
[1741957904816,0.011946,83709.0,83705.0,0.40408914]
[1741957905007,0.011945,83716.0,83711.0,0.011945]
[1741957905298,0.238911,83713.0,83710.0,0.239917]
[1741957906169,0.238914,83712.0,83710.0,0.001]
[1741957906367,0.238914,83712.0,83705.0,0.40408914]
[1741957906368,0.238929,83707.0,83705.0,0.40408914]
[1741957906630,0.238931,83706.0,83705.0,0.40408914]
[1741957907024,0.250877,83706.0,83705.0,0.40408914]
[1741957907444,0.26961634,83706.0,83705.0,0.40408914]
[1741957907657,0.26961634,83706.0,83705.0,0.40808914]
[1741957907888,0.26961634,83706.0,83705.0,0.41108914]
[1741957908074,0.26961634,83706.0,83705.0,0.40808914]
[1741957908793,0.26961634,83706.0,83701.0,0.0001694]
[1741957908945,0.250889,83702.0,83701.0,0.0001694]
[1741957910064,0.250889,83702.0,83701.0,0.0011694]
[1741957910270,0.250889,83702.0,83701.0,0.0041694]
[1741957910565,0.250889,83702.0,83701.0,0.0031694]
[1741957910751,0.26158029,83702.0,83701.0,0.0051694]
[1741957912126,0.27612114,83702.0,83701.0,0.0051694]
[1741957913120,0.27612114,83702.0,83701.0,0.0021694]
[1741957913654,0.27612114,83702.0,83701.0,0.0001694]
[1741957913850,0.27612114,83702.0,83701.0,0.0011694]
[1741957914051,0.27612114,83702.0,83701.0,0.0031694]
[1741957914854,0.238968,83694.0,83691.0,0.0001694]
[1741957915053,0.250919,83692.0,83691.0,0.0001694]
[1741957915255,0.250916,83693.0,83691.0,0.0001694]
[1741957915436,0.23897,83693.0,83691.0,0.0001694]
[1741957915637,0.01874164,83692.0,83691.0,0.0001694]
[1741957916018,0.01874164,83692.0,83691.0,0.2391434]
[1741957916280,0.02943293,83692.0,83691.0,0.2441434]
[1741957916685,0.02943293,83692.0,83691.0,0.2510914]
[1741957916885,0.04520482,83692.0,83691.0,0.2550914]
[1741957917096,0.06761178,83692.0,83691.0,0.2560914]
[1741957917469,0.06761178,83692.0,83691.0,0.2600914]
[1741957919029,0.06761178,83692.0,83691.0,0.2600914]
[1741957919231,0.28417582,83692.0,83691.0,0.0091694]
[1741957919910,0.04520482,83692.0,83691.0,0.0091694]
[1741957920331,0.04520482,83692.0,83691.0,0.2481434]
[1741957920474,0.04520482,83692.0,83691.0,0.0091694]
[1741957920858,0.04520482,83692.0,83691.0,0.2481434]
[1741957921303,0.06760532,83692.0,83691.0,0.2481434]
[1741957921868,0.06760532,83692.0,83691.0,0.0091694]
[1741957922299,0.06760532,83692.0,83691.0,0.2481434]
[1741957922769,0.06760532,83692.0,83691.0,0.2600914]
[1741957924292,0.238959,83697.0,83692.0,0.250919]
[1741957924501,0.238965,83695.0,83692.0,0.250919]
[1741957924701,0.01523763,83695.0,83694.0,0.238965]
[1741957924901,0.250903,83698.0,83694.0,0.238965]
[1741957925097,0.238959,83697.0,83694.0,0.01040145]
[1741957925520,0.238962,83696.0,83694.0,0.01040145]
[1741957925842,0.238957,83697.0,83693.0,0.238968]
[1741957926269,0.25413963,83697.0,83694.0,0.238964]
[1741957926441,0.25413963,83697.0,83693.0,0.238968]
[1741957926627,0.01518263,83697.0,83694.0,0.242965]
[1741957926865,0.53651774,83701.0,83697.0,0.238954]
[1741957927227,0.01521471,83701.0,83699.0,0.238949]
[1741957927428,0.01521471,83701.0,83697.0,0.250901]
[1741957927429,0.0003388,83709.0,83704.0,0.011946]
[1741957927546,0.0003388,83709.0,83706.0,0.238928]
[1741957927748,0.0003388,83709.0,83707.0,0.238926]
[1741957928168,0.0003388,83709.0,83708.0,0.01040571]
[1741957928399,0.0003388,83709.0,83708.0,0.238925]
[1741957928637,0.01577654,83709.0,83708.0,0.238925]
[1741957929010,0.0345158,83709.0,83708.0,0.250871]
[1741957930569,0.0345158,83709.0,83708.0,0.328571]
[1741957931121,0.0345158,83709.0,83708.0,0.330571]
[1741957931685,0.0345158,83709.0,83708.0,0.34197671]
[1741957932631,0.0345158,83709.0,83708.0,0.26427671]
[1741957932828,0.0345158,83709.0,83708.0,0.01340571]
[1741957933042,0.0345158,83709.0,83708.0,0.26427671]
[1741957933626,0.0345158,83709.0,83708.0,0.25233071]
[1741957933826,0.2853838,83709.0,83708.0,0.01340571]
[1741957934030,0.0345158,83709.0,83708.0,0.01340571]
[1741957934360,0.25983836,83709.0,83708.0,0.01340571]
[1741957934850,0.27212316,83709.0,83708.0,0.01340571]
[1741957935056,0.28666401,83709.0,83708.0,0.01340571]
[1741957935421,0.26792475,83709.0,83708.0,0.01340571]
[1741957936722,0.01705675,83709.0,83708.0,0.01340571]
[1741957936922,0.0025159,83709.0,83708.0,0.24333071]
[1741957937146,0.01317499,83709.0,83708.0,0.00440571]
[1741957937342,0.01317499,83709.0,83708.0,0.00729043]
[1741957937549,0.25209699,83709.0,83708.0,0.001]
[1741957938088,0.01317499,83709.0,83708.0,0.001]
[1741957938517,0.25209699,83709.0,83708.0,0.001]
[1741957938950,0.25209699,83709.0,83708.0,0.01069614]
[1741957939106,0.25209699,83709.0,83708.0,0.001]
[1741957939308,0.01317499,83709.0,83708.0,0.01069614]
[1741957939521,0.01317499,83709.0,83708.0,0.001]
[1741957939684,0.03191472,83709.0,83708.0,0.01069614]
[1741957939891,0.03191472,83709.0,83708.0,0.001]
[1741957940207,0.03191472,83709.0,83708.0,0.239925]
[1741957940390,0.03191472,83709.0,83708.0,0.26156714]
[1741957942041,0.02125563,83709.0,83708.0,0.26156714]
[1741957942648,0.02125563,83709.0,83708.0,0.01069614]
[1741957943514,0.02125563,83709.0,83708.0,0.24962114]
[1741957944264,0.02125563,83709.0,83708.0,0.01069614]
[1741957944930,0.03191361,83709.0,83708.0,0.01069614]
[1741957945194,0.27083561,83709.0,83708.0,0.01069614]
[1741957945728,0.27083561,83709.0,83708.0,0.24962114]
[1741957945729,0.03191361,83709.0,83708.0,0.24962114]
[1741957946189,0.03191361,83709.0,83708.0,0.24979054]
[1741957946486,0.28278161,83709.0,83708.0,0.01086554]
[1741957946847,0.28278161,83709.0,83708.0,0.0011694]
[1741957948759,0.28278161,83709.0,83708.0,0.01086554]
[1741957949365,0.28278161,83709.0,83708.0,0.0011694]
[1741957950383,0.28278161,83709.0,83708.0,0.01086554]
[1741957950593,0.27212363,83709.0,83708.0,0.01086554]
[1741957956820,0.02125563,83709.0,83708.0,0.01086554]
[1741957957004,0.32125563,83709.0,83708.0,0.01086554]
[1741957957419,0.56017763,83709.0,83708.0,0.01086554]
[1741957958283,0.02125563,83709.0,83708.0,0.01086554]
[1741957958894,0.02125563,83709.0,83708.0,0.26173654]
[1741957962641,0.26017763,83709.0,83708.0,0.01086554]
[1741957962859,0.27212363,83709.0,83708.0,0.01086554]
[1741957963159,0.27212363,83709.0,83708.0,0.0011694]
[1741957966571,0.27212363,83709.0,83708.0,0.01086554]
[1741957968038,0.27212363,83709.0,83708.0,0.0011694]
[1741957969087,0.238954,83699.0,83696.0,0.2181284]
[1741957969361,0.23896,83696.0,83693.0,0.64305714]
[1741957969563,0.011948,83696.0,83693.0,0.40408914]
[1741957969903,0.538962,83695.0,83694.0,0.00976856]
[1741957970760,0.3,83695.0,83694.0,0.00976856]
[1741957970984,0.3,83695.0,83694.0,0.24873356]
[1741957971526,0.3,83695.0,83694.0,0.26068156]
[1741957972325,0.3,83695.0,83694.0,0.26468156]
[1741957972524,0.31874146,83695.0,83694.0,0.26468156]
[1741957972746,0.31874146,83695.0,83694.0,0.26768156]
[1741957976276,0.31874146,83695.0,83694.0,0.34328156]
[1741957976474,0.01874146,83695.0,83694.0,0.34328156]
[1741957979488,0.01874146,83695.0,83694.0,0.26768156]
[1741957982753,0.01874146,83695.0,83694.0,0.26785096]
[1741957985025,0.0025159,83709.0,83708.0,0.250871]
[1741957985260,0.0025159,83709.0,83708.0,0.26056714]
[1741957987315,0.0035159,83709.0,83708.0,0.26056714]
[1741957987990,0.02225543,83709.0,83708.0,0.26056714]
[1741957988887,0.02125543,83709.0,83708.0,0.26056714]
[1741957990479,0.02125543,83709.0,83708.0,0.26156714]
[1741957991750,0.02125543,83709.0,83708.0,0.26356714]
[1741957992023,0.02125543,83709.0,83708.0,0.25162114]
[1741957992232,0.02125543,83709.0,83708.0,0.01269614]
[1741957992659,0.34087743,83709.0,83708.0,0.01269614]
[1741957992857,0.35282343,83709.0,83708.0,0.003]
[1741957993268,0.66736428,83709.0,83708.0,0.003]
[1741957993697,0.80216428,83709.0,83708.0,0.003]
[1741957993852,0.80216428,83709.0,83708.0,0.002]
[1741957994065,0.55091,83695.0,83691.0,0.0001694]
[1741957994799,0.56965154,83695.0,83691.0,0.0001694]
[1741957995251,0.56965154,83695.0,83694.0,0.0011694]
[1741957996807,0.56965154,83695.0,83694.0,0.0021694]
[1741957997512,0.64855154,83695.0,83694.0,0.0021694]
[1741957997720,0.62981,83695.0,83694.0,0.0021694]
[1741957998587,0.538962,83695.0,83694.0,0.0021694]
[1741957998795,0.238957,83697.0,83694.0,0.0021694]
[1741957998796,0.0025159,83709.0,83708.0,0.250871]
[1741958000190,0.0035159,83709.0,83708.0,0.250871]
[1741958000614,0.02225492,83709.0,83708.0,0.250871]
[1741958001012,0.02225492,83709.0,83708.0,0.252871]
[1741958001214,0.02125492,83709.0,83708.0,0.252871]
[1741958001413,0.02125492,83709.0,83708.0,0.255871]
[1741958002455,0.3,83713.0,83708.0,0.02664214]
[1741958002651,0.3,83713.0,83710.0,0.011946]
[1741958002862,0.01873947,83712.0,83709.0,0.23892]
[1741958003468,0.3,83710.0,83708.0,0.255871]
[1741958003668,0.3,83710.0,83708.0,0.241925]
[1741958004410,0.3,83710.0,83708.0,0.238925]
[1741958004575,0.3,83710.0,83708.0,0.240925]
[1741958005196,0.3,83710.0,83708.0,0.238925]
[1741958005407,0.538924,83709.0,83708.0,0.003]
[1741958006093,0.3,83709.0,83708.0,0.25362114]
[1741958006298,0.3,83709.0,83708.0,0.26556714]
[1741958006833,0.3,83709.0,83708.0,0.26356714]
[1741958007239,0.3,83709.0,83708.0,0.26556714]
[1741958007559,0.3,83709.0,83708.0,0.26256714]
[1741958007757,0.3,83709.0,83708.0,0.26556714]
[1741958008713,0.31873955,83709.0,83708.0,0.26556714]
[1741958008896,0.55766155,83709.0,83708.0,0.01469614]
[1741958009115,0.56960755,83709.0,83708.0,0.01469614]
[1741958009465,0.56960755,83709.0,83708.0,0.005]
[1741958009669,0.5841484,83709.0,83708.0,0.01469614]
[1741958010053,0.5841484,83709.0,83708.0,0.005]
[1741958010261,0.5841484,83709.0,83708.0,0.003]
[1741958010478,0.238943,83702.0,83698.0,0.238951]
[1741958010683,0.238943,83702.0,83697.0,0.250903]
[1741958010684,0.238943,83702.0,83699.0,0.24869269]
[1741958011070,0.238943,83702.0,83700.0,0.238948]
[1741958011287,0.238943,83702.0,83700.0,0.24868552]
[1741958011835,0.3,83701.0,83700.0,0.24868552]
[1741958012584,0.3,83701.0,83700.0,0.01273752]
[1741958013375,0.3,83701.0,83700.0,0.01573752]
[1741958013572,0.3,83701.0,83700.0,0.01273752]
[1741958013821,0.550892,83701.0,83700.0,0.01273752]
[1741958014027,0.550892,83701.0,83700.0,0.01173752]
[1741958014028,0.56543285,83701.0,83700.0,0.01173752]
[1741958014441,0.56543285,83701.0,83700.0,0.005]
[1741958014794,0.56543285,83701.0,83700.0,0.002]
[1741958015262,0.56643285,83701.0,83700.0,0.002]
[1741958015818,0.3,83697.0,83695.0,0.238961]
[1741958016003,0.3,83697.0,83696.0,0.23896]
[1741958017024,0.538953,83699.0,83697.0,0.238956]
[1741958017245,0.538951,83699.0,83697.0,0.238956]
[1741958017572,0.3,83699.0,83697.0,0.238956]
[1741958017775,0.31874142,83699.0,83697.0,0.238956]
[1741958017993,0.33068842,83699.0,83698.0,0.00974787]
[1741958018195,0.56963942,83699.0,83698.0,0.00974787]
[1741958018355,0.3,83695.0,83694.0,0.2391344]
[1741958020093,0.3,83697.0,83694.0,0.2391344]
[1741958020291,0.538958,83697.0,83694.0,0.2401344]
[1741958020592,0.3,83697.0,83696.0,0.23896]
[1741958020793,0.3,83697.0,83694.0,0.0011694]
[1741958020794,0.3,83695.0,83694.0,0.0011694]
[1741958020996,0.01874142,83699.0,83698.0,0.238954]
[1741958021195,0.01874142,83699.0,83698.0,0.250901]
[1741958021560,0.3,83697.0,83695.0,0.238961]
[1741958021859,0.3,83697.0,83696.0,0.001]
[1741958022294,0.3,83697.0,83694.0,0.2510774]
[1741958022295,0.25091,83695.0,83694.0,0.0001694]
[1741958022514,0.55091,83695.0,83694.0,0.0001694]
[1741958023791,0.55091,83695.0,83694.0,0.0011694]
[1741958023990,0.68502588,83695.0,83694.0,0.0011694]
[1741958024218,0.56545085,83695.0,83694.0,0.0011694]
[1741958024389,0.56545085,83695.0,83694.0,0.0021694]
[1741958025098,0.56545085,83695.0,83694.0,0.0011694]
[1741958025312,0.56645085,83695.0,83694.0,0.0011694]
[1741958025526,0.60044911,83695.0,83694.0,1e-08]
[1741958025746,0.64795985,83692.0,83691.0,0.0001694]
[1741958025954,6.32849285,83692.0,83691.0,0.0001694]
[1741958026581,0.62834,83685.0,83684.0,0.0003386]
[1741958026759,0.77768085,83685.0,83684.0,0.0003386]
[1741958027405,0.79642848,83685.0,83684.0,0.0003386]
[1741958028159,6.52266148,83685.0,83684.0,6e-07]
[1741958028370,6.52266148,83685.0,83664.0,0.0003386]
[1741958028371,0.551,83665.0,83664.0,0.0003386]
[1741958028582,0.56554085,83665.0,83664.0,0.0003386]
[1741958029002,0.58478651,83665.0,83664.0,0.0003386]
[1741958029208,0.60353618,83665.0,83664.0,0.0003386]
[1741958030278,0.33799533,83665.0,83664.0,0.0003386]
[1741958030484,0.33799533,83665.0,83664.0,0.0013386]
[1741958030802,0.58899533,83665.0,83664.0,0.0013386]
[1741958031406,0.60353618,83665.0,83664.0,0.0023386]
[1741958032044,0.30353618,83665.0,83664.0,0.0023386]
[1741958032481,0.30353618,83665.0,83664.0,0.0013386]
[1741958032847,0.30353618,83665.0,83664.0,0.0003386]
[1741958033050,0.3124724,83665.0,83664.0,0.0003386]
[1741958034165,0.6124724,83665.0,83664.0,0.0003386]
[1741958035049,0.6005204,83665.0,83664.0,0.0003386]
[1741958035424,0.6124724,83665.0,83664.0,0.0003386]
[1741958036641,0.3614724,83665.0,83664.0,0.0003386]
[1741958037045,0.3614724,83665.0,83664.0,0.2393896]
[1741958037218,0.3614724,83665.0,83664.0,0.0003386]
[1741958037576,0.34693155,83665.0,83664.0,0.0003386]
[1741958037939,0.03799533,83665.0,83664.0,0.2393896]